bitfinex/quotes_BTCUSD_20250809
["timestamp","ask_amount","ask_price","bid_price","bid_amount"]
[1754713690418,0.13671,116610.0,116600.0,0.80967574]
[1754713690643,0.39508398,116610.0,116590.0,0.18025001]
[1754713690982,0.17455658,116600.0,116590.0,0.48958433]
[1754713691102,0.17663658,116600.0,116590.0,0.31804958]
[1754713693759,0.17663658,116600.0,116590.0,0.32004958]
[1754713694155,0.17663658,116600.0,116590.0,0.002]
[1754713694600,0.17663658,116600.0,116590.0,0.32004958]
[1754713695338,0.22081213,116600.0,116590.0,0.32004958]
[1754713695667,0.17663658,116600.0,116590.0,0.32004958]
[1754713695872,0.17663658,116600.0,116590.0,0.002]
[1754713696240,0.17663658,116600.0,116590.0,0.32004958]
[1754713696388,0.17663658,116600.0,116590.0,0.002]
[1754713696725,0.17663658,116600.0,116590.0,0.32004958]
[1754713697694,0.17663658,116600.0,116590.0,0.002]
[1754713697909,0.236732,116600.0,116590.0,0.32004958]
[1754713698810,0.17663658,116600.0,116590.0,0.32004958]
[1754713700227,0.17663658,116600.0,116590.0,0.17354129]
[1754713700407,0.17663658,116600.0,116590.0,0.49159087]
[1754713702097,0.17663658,116600.0,116590.0,0.49356087]
[1754713706735,0.00511,116600.0,116590.0,0.49356087]
[1754713711779,0.00466426,116600.0,116590.0,0.49356087]
[1754713712922,0.00208,116600.0,116590.0,0.49356087]
[1754713713157,0.00208,116600.0,116590.0,0.17551129]
[1754713713362,0.00208,116600.0,116590.0,0.49356087]
[1754713715786,0.17360658,116600.0,116590.0,0.49356087]
[1754713718804,0.17666658,116600.0,116590.0,0.49356087]
[1754713725212,0.17666658,116600.0,116590.0,0.17551129]
[1754713725417,0.17666658,116600.0,116590.0,0.49356087]
[1754713726486,0.17666658,116600.0,116590.0,0.17551129]
[1754713726704,0.17666658,116600.0,116590.0,0.49356087]
[1754713728480,0.17666658,116600.0,116590.0,0.32201958]
[1754713729092,0.17666658,116600.0,116590.0,0.00397]
[1754713729263,0.20638651,116600.0,116590.0,0.32004958]
[1754713730592,0.17666658,116600.0,116590.0,0.002]
[1754713730793,0.17666658,116600.0,116590.0,0.32004958]
[1754713735088,0.17666658,116600.0,116590.0,0.32203958]
[1754713735682,0.17360658,116600.0,116590.0,0.32203958]
[1754713736725,0.17152658,116600.0,116590.0,0.32527958]
[1754713738266,0.17152658,116600.0,116590.0,0.32203958]
[1754713741174,0.17152658,116600.0,116590.0,0.49358087]
[1754713750712,0.17152658,116600.0,116590.0,0.32203958]
[1754713751156,0.17367658,116600.0,116590.0,0.32203958]
[1754713751582,0.17673658,116600.0,116590.0,0.32203958]
[1754713752667,0.17673658,116600.0,116590.0,0.32004958]
[1754713753574,0.17673658,116600.0,116590.0,0.002]
[1754713753769,0.17673658,116600.0,116590.0,0.32203958]
[1754713754477,0.17673658,116600.0,116590.0,0.00399]
[1754713754724,0.17673658,116600.0,116590.0,0.32203958]
[1754713758256,0.17673658,116600.0,116590.0,0.00399]
[1754713758471,0.17673658,116600.0,116590.0,0.32203958]
[1754713758836,0.17424934,116600.0,116590.0,0.32203958]
[1754713759498,0.17424934,116600.0,116590.0,0.00399]
[1754713759713,0.17424934,116600.0,116590.0,0.32203958]
[1754713760437,0.17424934,116600.0,116590.0,0.49358087]
[1754713760641,0.17118934,116600.0,116590.0,0.49358087]
[1754713761752,0.17118934,116600.0,116590.0,0.17553129]
[1754713761888,0.17118934,116600.0,116590.0,0.49358087]
[1754713768480,0.17118934,116600.0,116590.0,0.17553129]
[1754713768626,0.17118934,116600.0,116590.0,0.49358087]
[1754713770410,0.00215,116600.0,116590.0,0.49358087]
[1754713772490,0.17367658,116600.0,116590.0,0.17553129]
[1754713772700,0.17367658,116600.0,116590.0,0.49358087]
[1754713774724,0.17690658,116600.0,116590.0,0.17553129]
[1754713774851,0.17690658,116600.0,116590.0,0.49358087]
[1754713777264,0.17690658,116600.0,116590.0,0.570758]
[1754713780035,0.17690658,116600.0,116590.0,0.25270842]
[1754713780246,0.17690658,116600.0,116590.0,0.570758]
[1754713785360,0.17300658,116600.0,116590.0,0.570758]
[1754713785570,0.16977658,116600.0,116590.0,0.573978]
[1754713788010,0.16977658,116600.0,116590.0,0.25592842]
[1754713788464,0.16977658,116600.0,116590.0,0.573978]
[1754713791040,0.16977658,116600.0,116590.0,0.08438713]
[1754713791257,0.17191658,116600.0,116590.0,0.40243671]
[1754713792069,0.17191658,116600.0,116590.0,0.573978]
[1754713796232,0.17191658,116600.0,116590.0,0.25592842]
[1754713796484,0.17191658,116600.0,116590.0,0.573978]
[1754713799586,0.16977658,116600.0,116590.0,0.573978]
[1754713800271,0.17190658,116600.0,116590.0,0.40243671]
[1754713801849,0.17190658,116600.0,116590.0,0.08438713]
[1754713802062,0.17190658,116600.0,116590.0,0.40243671]
[1754713802478,0.17190658,116600.0,116590.0,0.08438713]
[1754713802681,0.17190658,116600.0,116590.0,0.40243671]
[1754713803340,0.17190658,116600.0,116590.0,0.08438713]
[1754713803557,0.17190658,116600.0,116590.0,0.40243671]
[1754713803771,0.26182869,116600.0,116590.0,0.08116713]
[1754713804025,0.6590432,116600.0,116590.0,0.07917713]
[1754713804293,0.6848142,116600.0,116590.0,0.002]
[1754713805659,0.6848142,116600.0,116590.0,0.001]
[1754713806024,0.17155601,116580.0,116570.0,0.32710222]
[1754713806253,0.30319601,116580.0,116570.0,0.32913222]
[1754713806491,0.30319601,116580.0,116570.0,0.33233222]
[1754713807223,0.30319601,116580.0,116570.0,0.32375369]
[1754713807882,0.30319601,116580.0,116570.0,0.32675369]
[1754713807883,0.30532601,116580.0,116570.0,0.32675369]
[1754713810618,0.30532601,116580.0,116570.0,0.32875369]
[1754713812302,0.30532601,116580.0,116570.0,0.01070411]
[1754713812523,0.30532601,116580.0,116570.0,0.32875369]
[1754713813225,0.30532601,116580.0,116570.0,0.01070411]
[1754713813473,0.30532601,116580.0,116570.0,0.32875369]
[1754713816149,0.30532601,116580.0,116570.0,0.01070411]
[1754713816375,0.30532601,116580.0,116570.0,0.32875369]
[1754713820678,0.30532601,116580.0,116570.0,0.32555369]
[1754713820895,0.30532601,116580.0,116570.0,0.00750411]
[1754713821098,0.30532601,116580.0,116570.0,0.32555369]
[1754713821513,0.35589717,116580.0,116570.0,0.00750411]
[1754713821719,0.30532601,116580.0,116570.0,0.32555369]
[1754713821933,0.30847601,116580.0,116570.0,0.00750411]
[1754713822140,0.30847601,116580.0,116570.0,0.32555369]
[1754713823177,0.30847601,116580.0,116570.0,0.00750411]
[1754713823390,0.30847601,116580.0,116570.0,0.32555369]
[1754713824148,0.30847601,116580.0,116570.0,0.00750411]
[1754713824350,0.30847601,116580.0,116570.0,0.32352369]
[1754713824851,0.30847601,116580.0,116570.0,0.32550369]
[1754713825480,0.30847601,116580.0,116570.0,0.00745411]
[1754713825681,0.30847601,116580.0,116570.0,0.32550369]
[1754713828004,0.30532601,116580.0,116570.0,0.32550369]
[1754713828837,0.30532601,116580.0,116570.0,0.32873369]
[1754713830775,0.30532601,116580.0,116570.0,0.50030442]
[1754713841798,0.30532601,116580.0,116570.0,0.18225484]
[1754713842217,0.30532601,116580.0,116570.0,0.50030442]
[1754713846715,0.30319601,116580.0,116570.0,0.50030442]
[1754713849572,0.13164,116580.0,116570.0,0.818354]
[1754713850203,0.13164,116580.0,116570.0,0.18225484]
[1754713850430,0.13164,116580.0,116570.0,0.50030442]
[1754713851269,0.13164,116580.0,116570.0,0.18225484]
[1754713851480,0.13164,116580.0,116570.0,0.50030442]
[1754713851690,0.13164,116580.0,116570.0,0.58709867]
[1754713851905,0.13152,116590.0,116580.0,0.17155601]
[1754713852117,0.13152,116590.0,116580.0,0.81274517]
[1754713852337,0.13152,116590.0,116580.0,0.17664601]
[1754713852541,0.13152,116590.0,116580.0,0.81274517]
[1754713852751,0.26836501,116600.0,116590.0,0.17154129]
[1754713852957,0.27045501,116600.0,116590.0,0.49174087]
[1754713853163,0.40329501,116600.0,116590.0,0.49174087]
[1754713853594,0.40329501,116600.0,116590.0,0.50829066]
[1754713853595,0.13284,116600.0,116590.0,0.50829066]
[1754713853846,0.18008746,116610.0,116600.0,0.17152658]
[1754713854031,0.55970211,116610.0,116600.0,0.81271574]
[1754713854240,0.73330398,116610.0,116600.0,0.49172616]
[1754713854659,0.73330398,116610.0,116600.0,0.49466616]
[1754713855541,0.73330398,116610.0,116600.0,0.81271574]
[1754713855755,0.73330398,116610.0,116600.0,0.17661658]
[1754713855961,0.73330398,116610.0,116600.0,0.81271574]
[1754713856097,0.22179211,116610.0,116600.0,0.81271574]
[1754713856318,0.21986211,116610.0,116600.0,0.17761658]
[1754713856641,0.21986211,116610.0,116600.0,0.81371574]
[1754713856840,0.08686211,116610.0,116600.0,0.81371574]
[1754713857045,0.21986211,116610.0,116600.0,0.81471574]
[1754713857442,0.133,116610.0,116600.0,0.81471574]
[1754713857863,0.2262506,116630.0,116610.0,0.17151187]
[1754713858056,0.21990211,116620.0,116610.0,0.17445187]
[1754713858257,0.21990211,116620.0,116610.0,0.17660187]
[1754713859027,0.21990211,116620.0,116610.0,0.17707598]
[1754713859428,0.21990211,116620.0,116610.0,0.49512556]
[1754713860044,0.22090211,116620.0,116610.0,0.49512556]
[1754713860881,0.39239928,116620.0,116610.0,0.17707598]
[1754713861086,0.39448928,116620.0,116610.0,0.49512556]
[1754713861926,0.39448928,116620.0,116610.0,0.17707598]
[1754713862110,0.39448928,116620.0,116610.0,0.49512556]
[1754713862340,0.39448928,116620.0,116610.0,0.49218556]
[1754713862950,0.39448928,116620.0,116610.0,0.17413598]
[1754713863158,0.39448928,116620.0,116610.0,0.49218556]
[1754713863571,0.39448928,116620.0,116610.0,0.49512556]
[1754713864832,0.30561717,116620.0,116610.0,0.49512556]
[1754713865038,0.30561717,116620.0,116610.0,0.17707598]
[1754713865247,0.30561717,116620.0,116610.0,0.49512556]
[1754713865678,0.30770717,116620.0,116610.0,0.49512556]
[1754713866178,0.30770717,116620.0,116610.0,0.32361369]
[1754713866658,0.30770717,116620.0,116610.0,0.00556411]
[1754713866935,0.31068717,116620.0,116610.0,0.31852369]
[1754713867568,0.31068717,116620.0,116610.0,0.32067369]
[1754713867774,0.31068717,116620.0,116610.0,0.00262411]
[1754713868196,0.31068717,116620.0,116610.0,0.32067369]
[1754713868403,0.31068717,116620.0,116610.0,0.40285031]
[1754713869003,0.30770717,116620.0,116610.0,0.40285031]
[1754713869283,0.30770717,116620.0,116610.0,0.08774073]
[1754713869493,0.30770717,116620.0,116610.0,0.32361369]
[1754713869930,0.30770717,116620.0,116610.0,0.00556411]
[1754713870150,0.30770717,116620.0,116610.0,0.32361369]
[1754713870380,0.30770717,116620.0,116610.0,0.00556411]
[1754713870828,0.30770717,116620.0,116610.0,0.32361369]
[1754713875291,0.30770717,116620.0,116610.0,0.00556411]
[1754713875508,0.30770717,116620.0,116610.0,0.32361369]
[1754713878017,0.30770717,116620.0,116610.0,0.00556411]
[1754713878427,0.30770717,116620.0,116610.0,0.32361369]
[1754713882248,0.30770717,116620.0,116610.0,0.40579031]
[1754713882862,0.30770717,116620.0,116610.0,0.00556411]
[1754713883068,0.30770717,116620.0,116610.0,0.32361369]
[1754713884088,0.30770717,116620.0,116610.0,0.17707598]
[1754713884532,0.30770717,116620.0,116610.0,0.49512556]
[1754713886421,0.30770717,116620.0,116610.0,0.17707598]
[1754713886662,0.30770717,116620.0,116610.0,0.49512556]
[1754713886872,0.30770717,116620.0,116610.0,0.17413598]
[1754713887085,0.30770717,116620.0,116610.0,0.49218556]
[1754713887800,0.30770717,116620.0,116610.0,0.17413598]
[1754713888020,0.31068717,116620.0,116610.0,0.17413598]
[1754713889852,0.31068717,116620.0,116610.0,0.00262411]
[1754713890056,0.31068717,116620.0,116610.0,0.17413598]
[1754713891330,0.30770717,116620.0,116610.0,0.17413598]
[1754713892360,0.30770717,116620.0,116610.0,0.18286756]
[1754713892768,0.30770717,116620.0,116610.0,0.17413598]
[1754713892943,0.30770717,116620.0,116610.0,0.17728598]
[1754713895376,0.30561717,116620.0,116610.0,0.17728598]
[1754713895573,0.13412,116620.0,116610.0,0.17728598]
[1754713895775,0.13412,116620.0,116610.0,0.21388839]
[1754713896145,0.13412,116620.0,116610.0,0.17728598]
[1754713896782,0.13412,116620.0,116610.0,0.49533556]
[1754713897170,0.13412,116620.0,116610.0,0.17728598]
[1754713897374,0.13412,116620.0,116610.0,0.57245324]
[1754713899985,0.13412,116620.0,116610.0,0.25440366]
[1754713900191,0.13312,116620.0,116610.0,0.32285733]
[1754713900625,0.13312,116620.0,116610.0,0.64190691]
[1754713901027,0.13312,116620.0,116610.0,0.64390691]
[1754713903397,0.13312,116620.0,116610.0,0.32585733]
[1754713903580,0.13312,116620.0,116610.0,0.57545324]
[1754713903781,0.13312,116620.0,116610.0,0.25740366]
[1754713905712,0.13312,116620.0,116610.0,0.57545324]
[1754713906935,0.30670717,116620.0,116610.0,0.57545324]
[1754713907140,0.13819,116620.0,116610.0,0.25210366]
[1754713907540,0.13819,116620.0,116610.0,0.33889791]
[1754713907928,0.13819,116620.0,116610.0,0.25210366]
[1754713909729,0.30968717,116620.0,116610.0,0.25210366]
[1754713910396,0.13819,116620.0,116610.0,0.25210366]
[1754713912513,0.13819,116620.0,116610.0,0.25421366]
[1754713913825,0.13521,116620.0,116610.0,0.25421366]
[1754713914033,0.13312,116620.0,116610.0,0.25723366]
[1754713914242,0.13312,116620.0,116610.0,0.57528324]
[1754713914498,0.13312,116620.0,116610.0,0.25723366]
[1754713914765,0.13312,116620.0,116610.0,0.57528324]
[1754713915763,0.13312,116620.0,116610.0,0.34402791]
[1754713916174,0.30528319,116630.0,116620.0,0.17149717]
[1754713916384,0.13596,116630.0,116620.0,0.17149717]
[1754713916819,0.47686,116640.0,116630.0,0.17148246]
[1754713917069,0.30843914,116650.0,116630.0,0.17359246]
[1754713917282,0.30843914,116650.0,116630.0,0.19022225]
[1754713917488,0.1369,116650.0,116640.0,0.17146776]
[1754713917695,0.00216,116650.0,116640.0,0.17357776]
[1754713918782,0.17561306,116650.0,116640.0,0.00211]
[1754713918993,0.17667306,116650.0,116630.0,0.56966972]
[1754713919212,0.13788,116640.0,116630.0,0.65646397]
[1754713919424,0.13788,116640.0,116630.0,0.65857397]
[1754713919885,0.13788,116640.0,116630.0,0.34052439]
[1754713920085,0.13788,116640.0,116630.0,0.57177972]
[1754713920291,0.14102,116650.0,116640.0,0.17146776]
[1754713920507,0.31463306,116650.0,116640.0,0.17146776]
[1754713920715,0.31463306,116650.0,116630.0,0.25262014]
[1754713920924,0.31463306,116650.0,116630.0,0.57066972]
[1754713921128,0.31463306,116650.0,116630.0,0.65846397]
[1754713921337,0.31463306,116650.0,116630.0,0.34041439]
[1754713921545,0.31463306,116650.0,116630.0,0.25162014]
[1754713921949,0.31463306,116650.0,116630.0,0.24860014]
[1754713921950,0.00306,116640.0,116630.0,0.24860014]
[1754713922162,0.00522,116640.0,116630.0,0.24860014]
[1754713923418,0.00522,116640.0,116630.0,0.56664972]
[1754713923835,0.00522,116640.0,116630.0,0.24860014]
[1754713924042,0.00522,116640.0,116630.0,0.32357431]
[1754713924471,0.00522,116640.0,116630.0,0.24860014]
[1754713925150,0.17668776,116640.0,116630.0,0.25060014]
[1754713925780,0.17668776,116640.0,116630.0,0.17348246]
[1754713925988,0.00522,116640.0,116630.0,0.17348246]
[1754713926466,0.00522,116640.0,116630.0,0.21896168]
[1754713926666,0.00216,116640.0,116630.0,0.21896168]
[1754713927508,0.31247306,116650.0,116630.0,0.22198168]
[1754713927712,0.39933517,116650.0,116630.0,0.25573014]
[1754713928587,0.00216,116640.0,116630.0,0.25573014]
[1754713928803,0.00216,116640.0,116630.0,0.25373014]
[1754713929198,0.00216,116640.0,116630.0,0.25573014]
[1754713929404,0.00216,116640.0,116630.0,0.17861246]
[1754713929609,0.00216,116640.0,116630.0,0.25573014]
[1754713929813,0.00216,116640.0,116630.0,0.17861246]
[1754713931031,0.00216,116640.0,116630.0,0.17761246]
[1754713931458,0.39933517,116650.0,116630.0,0.25489763]
[1754713931632,0.39933517,116650.0,116630.0,0.17961246]
[1754713932246,0.39933517,116650.0,116630.0,0.17861246]
[1754713932456,0.00216,116640.0,116630.0,0.17861246]
[1754713932660,0.00216,116640.0,116630.0,0.17761246]
[1754713932814,0.00216,116640.0,116630.0,0.17459246]
[1754713933223,0.00522,116640.0,116630.0,0.17459246]
[1754713933861,0.17668776,116640.0,116630.0,0.17359246]
[1754713934059,0.17668776,116640.0,116630.0,0.17459246]
[1754713934263,0.17668776,116640.0,116630.0,0.17559246]
[1754713934523,0.17362776,116640.0,116630.0,0.17459246]
[1754713934813,0.17362776,116640.0,116630.0,0.17659246]
[1754713935029,0.17362776,116640.0,116630.0,0.25187763]
[1754713935238,0.00216,116640.0,116630.0,0.25489763]
[1754713935444,0.39933517,116650.0,116630.0,0.25489763]
[1754713935649,0.39933517,116650.0,116630.0,0.25673014]
[1754713936900,0.39933517,116650.0,116630.0,0.57477972]
[1754713937317,0.39627517,116650.0,116640.0,0.17146776]
[1754713937518,0.39627517,116650.0,116640.0,0.17659776]
[1754713938366,0.39843517,116650.0,116640.0,0.17659776]
[1754713938978,0.39843517,116650.0,116640.0,0.17357776]
[1754713939163,0.26047517,116650.0,116640.0,0.17357776]
[1754713939376,0.39851517,116650.0,116640.0,0.17357776]
[1754713939523,0.39851517,116650.0,116640.0,0.24810251]
[1754713939708,0.39851517,116650.0,116640.0,0.17357776]
[1754713940169,0.39851517,116650.0,116640.0,0.17659776]
[1754713940797,0.39635517,116650.0,116640.0,0.17659776]
[1754713941220,0.39851517,116650.0,116640.0,0.17659776]
[1754713941446,0.13804,116650.0,116640.0,0.17659776]
[1754713941681,0.13804,116650.0,116640.0,0.53726713]
[1754713942116,0.20073684,116670.0,116660.0,0.17143836]
[1754713942346,0.00226,116670.0,116660.0,0.17359836]
[1754713942568,0.13872,116670.0,116660.0,0.17663836]
[1754713943373,0.13886212,116670.0,116660.0,0.57180562]
[1754713943578,0.13886212,116670.0,116660.0,0.25375604]
[1754713943799,0.13886212,116670.0,116660.0,0.57180562]
[1754713944006,0.14186212,116670.0,116660.0,0.62958987]
[1754713944208,0.14086212,116670.0,116660.0,0.31154029]
[1754713944410,0.31434579,116670.0,116660.0,0.05994425]
[1754713944591,0.31535579,116670.0,116660.0,0.002]
[1754713945304,0.31535579,116670.0,116660.0,0.003]
[1754713945532,0.31535579,116670.0,116660.0,0.17443836]
[1754713946413,0.31535579,116670.0,116660.0,0.003]
[1754713952642,0.31535579,116670.0,116660.0,0.32073484]
[1754713952875,0.31535579,116670.0,116660.0,0.003]
[1754713953058,0.31535579,116670.0,116660.0,0.32073484]
[1754713953265,0.31535579,116670.0,116660.0,0.003]
[1754713953488,0.31535579,116670.0,116660.0,0.32073484]
[1754713954732,0.31535579,116670.0,116660.0,0.003]
[1754713954932,0.31535579,116670.0,116660.0,0.32073484]
[1754713955164,0.4022179,116670.0,116660.0,0.003]
[1754713956534,0.4022179,116670.0,116660.0,0.32073484]
[1754713956783,0.4022179,116670.0,116660.0,0.003]
[1754713956998,0.4604578,116670.0,116660.0,0.003]
[1754713957225,0.47790682,116670.0,116660.0,0.003]
[1754713959111,0.41966692,116670.0,116660.0,0.003]
[1754713962663,0.75966692,116670.0,116660.0,0.003]
[1754713963110,0.75966692,116670.0,116660.0,0.002]
[1754713963359,0.78542492,116670.0,116660.0,0.002]
[1754713964241,0.17145306,116650.0,116640.0,0.31773484]
[1754713964460,0.31049306,116650.0,116640.0,0.32293484]
[1754713964795,0.31049306,116650.0,116640.0,0.0052]
[1754713964997,0.31049306,116650.0,116640.0,0.32293484]
[1754713965409,0.31049306,116650.0,116640.0,0.32593484]
[1754713966006,0.31049306,116650.0,116640.0,0.32793484]
[1754713966210,0.31049306,116650.0,116640.0,0.0102]
[1754713966722,0.31049306,116650.0,116640.0,0.32793484]
[1754713967151,0.31255306,116650.0,116640.0,0.32793484]
[1754713967730,0.31255306,116650.0,116640.0,0.0102]
[1754713967935,0.31255306,116650.0,116640.0,0.32793484]
[1754713968458,0.17351306,116650.0,116640.0,0.3864456]
[1754713968661,0.17145051,116660.0,116640.0,0.88661506]
[1754713968863,0.17145306,116650.0,116640.0,0.25574544]
[1754713969092,0.31121306,116650.0,116640.0,0.08427768]
[1754713969294,0.31121306,116650.0,116640.0,0.71974736]
[1754713969474,0.31121306,116650.0,116640.0,0.80758161]
[1754713969874,0.31121306,116650.0,116640.0,0.80958161]
[1754713970089,0.31121306,116650.0,116640.0,0.17411193]
[1754713970359,0.31121306,116650.0,116640.0,0.08731768]
[1754713970539,0.31121306,116650.0,116640.0,0.40305252]
[1754713970743,0.31121306,116650.0,116640.0,0.40505252]
[1754713971249,0.31121306,116650.0,116640.0,0.57652028]
[1754713972473,0.31121306,116650.0,116640.0,0.25878544]
[1754713972674,0.31121306,116650.0,116640.0,0.57652028]
[1754713974121,0.31121306,116650.0,116640.0,0.40505252]
[1754713974329,0.31121306,116650.0,116640.0,0.32793484]
[1754713977916,0.31326306,116650.0,116640.0,0.0102]
[1754713978139,0.31326306,116650.0,116640.0,0.32793484]
[1754713979146,0.31326306,116650.0,116640.0,0.32489484]
[1754713980494,0.31326306,116650.0,116640.0,0.40201252]
[1754713981698,0.31326306,116650.0,116640.0,0.08427768]
[1754713982114,0.31326306,116650.0,116640.0,0.40201252]
[1754713984729,0.31326306,116650.0,116640.0,0.40512252]
[1754713984943,0.31326306,116650.0,116640.0,0.08738768]
[1754713985147,0.31121306,116650.0,116640.0,0.57659028]
[1754713985569,0.31121306,116650.0,116640.0,0.66338453]
[1754713986622,0.31121306,116650.0,116640.0,0.34564969]
[1754713986830,0.31121306,116650.0,116640.0,0.66338453]
[1754713987462,0.13976,116650.0,116640.0,0.66338453]
[1754713989384,0.31005051,116660.0,116640.0,0.34564969]
[1754713989592,0.39691262,116660.0,116650.0,0.31773484]
[1754713989767,0.39896262,116660.0,116650.0,0.31979484]
[1754713990174,0.31005051,116660.0,116650.0,0.4943579]
[1754713990381,0.17145051,116660.0,116650.0,0.17662306]
[1754713990588,0.31021051,116660.0,116650.0,0.4943579]
[1754713990797,0.31021051,116660.0,116650.0,0.57147558]
[1754713991619,0.13876,116660.0,116650.0,0.57147558]
[1754713991821,0.13876,116660.0,116650.0,0.25374074]
[1754713992028,0.13876,116660.0,116650.0,0.58508537]
[1754713992599,0.13876,116660.0,116650.0,0.58708537]
[1754713993008,0.13876,116660.0,116650.0,0.26935053]
[1754713993218,0.13876,116660.0,116650.0,0.58708537]
[1754713994022,0.18033697,116670.0,116660.0,0.17143836]
[1754713994269,0.13882212,116670.0,116660.0,0.57128737]
[1754713994491,0.13882212,116670.0,116660.0,0.4943432]
[1754713996165,0.31024579,116670.0,116660.0,0.4943432]
[1754713996757,0.31024579,116670.0,116660.0,0.17660836]
[1754713996958,0.31024579,116670.0,116660.0,0.4943432]
[1754713997587,0.31024579,116670.0,116660.0,0.17660836]
[1754713997864,0.31024579,116670.0,116660.0,0.4943432]
[1754713998061,0.31024579,116670.0,116660.0,0.17660836]
[1754713998278,0.31024579,116670.0,116660.0,0.4943432]
[1754713998710,0.31024579,116670.0,116660.0,0.17660836]
[1754713998925,0.31229579,116670.0,116660.0,0.17660836]
[1754713999124,0.31229579,116670.0,116660.0,0.4943432]
[1754713999922,0.31229579,116670.0,116660.0,0.4912332]
[1754714000915,0.31024579,116670.0,116660.0,0.4943432]
[1754714001138,0.31024579,116670.0,116660.0,0.17660836]
[1754714001408,0.31024579,116670.0,116660.0,0.4943432]
[1754714001610,0.13882212,116670.0,116660.0,0.4943432]
[1754714001852,0.00034212,116670.0,116660.0,0.4943432]
[1754714002074,0.13850212,116670.0,116660.0,0.57128737]
[1754714002482,0.00034212,116670.0,116660.0,0.32303015]
[1754714002883,0.00034212,116670.0,116660.0,0.4943432]
[1754714003032,0.00034212,116670.0,116660.0,0.17660836]
[1754714003232,0.00034212,116670.0,116660.0,0.58113745]
[1754714003446,0.00034212,116670.0,116660.0,0.34020803]
[1754714003658,0.00034212,116670.0,116660.0,0.26340261]
[1754714003872,0.00034212,116670.0,116660.0,0.58313745]
[1754714004093,0.00034212,116670.0,116660.0,0.26540261]
[1754714004330,0.00034212,116670.0,116660.0,0.58313745]
[1754714004568,0.00034212,116670.0,116660.0,0.26540261]
[1754714004815,0.00034212,116670.0,116660.0,0.58313745]
[1754714005051,0.00034212,116670.0,116660.0,0.26340261]
[1754714005286,0.00034212,116670.0,116660.0,0.58213745]
[1754714005515,0.00034212,116670.0,116660.0,0.58513745]
[1754714005754,0.00034212,116670.0,116660.0,0.26740261]
[1754714005980,0.00034212,116670.0,116660.0,0.58513745]
[1754714006459,0.00034212,116670.0,116660.0,0.6618858]
[1754714006702,0.00034212,116670.0,116660.0,0.6608858]
[1754714006951,0.00034212,116670.0,116660.0,0.68885618]
[1754714007440,0.00034212,116670.0,116660.0,0.68884477]
[1754714008388,0.00034212,116670.0,116660.0,0.71459277]
[1754714008606,0.00034212,116670.0,116660.0,0.63785583]
[1754714008825,0.00034212,116670.0,116660.0,0.32012099]
[1754714009049,0.00034212,116670.0,116660.0,0.63785583]
[1754714010207,0.00034212,116670.0,116660.0,0.32012099]
[1754714010421,0.00034212,116670.0,116660.0,0.63785583]
[1754714012263,0.00034212,116670.0,116660.0,0.32012099]
[1754714012483,0.00034212,116670.0,116660.0,0.63785583]
[1754714013353,0.00034212,116670.0,116660.0,0.32012099]
[1754714013800,0.00034212,116670.0,116660.0,0.63785583]
[1754714014881,0.00034212,116670.0,116660.0,0.32012099]
[1754714015312,0.00034212,116670.0,116660.0,0.63785583]
[1754714016656,0.00034212,116670.0,116660.0,0.32012099]
[1754714016879,0.00034212,116670.0,116660.0,0.63785583]
[1754714017943,0.00034212,116670.0,116660.0,0.32012099]
[1754714018150,0.00034212,116670.0,116660.0,0.63785583]
[1754714018361,0.00034212,116670.0,116660.0,0.32012099]
[1754714018579,0.00034212,116670.0,116660.0,0.63785583]
[1754714020266,0.00034212,116670.0,116660.0,0.42811592]
[1754714020468,0.00034212,116670.0,116660.0,0.74585076]
[1754714022045,0.00034212,116670.0,116660.0,0.42811592]
[1754714022271,0.00034212,116670.0,116660.0,0.74585076]
[1754714023192,0.00034212,116670.0,116660.0,1.49044771]
[1754714023432,0.00034212,116670.0,116660.0,1.17271287]
[1754714025349,0.00034212,116670.0,116660.0,1.31231287]
[1754714026168,0.00034212,116670.0,116660.0,1.63004771]
[1754714026787,0.00034212,116670.0,116660.0,0.99457803]
[1754714027033,0.00034212,116670.0,116660.0,1.31231287]
[1754714028583,0.00034212,116670.0,116660.0,1.57811287]
[1754714030072,0.00034212,116670.0,116660.0,1.92795287]
[1754714030495,0.00034212,116670.0,116660.0,1.61021803]
[1754714030712,0.00034212,116670.0,116660.0,2.24530531]
[1754714030927,0.00034212,116670.0,116660.0,2.13731038]
[1754714033201,0.00034212,116670.0,116660.0,2.45485402]
[1754714034450,0.00034212,116670.0,116660.0,2.13731038]
[1754714034670,0.00034212,116670.0,116660.0,2.45485402]
[1754714036132,0.00010054,116670.0,116660.0,2.45485402]
[1754714040438,0.00010054,116670.0,116660.0,1.5022231]
[1754714040652,0.00010054,116670.0,116660.0,2.45485402]
[1754714042130,0.00010054,116670.0,116660.0,1.5022231]
[1754714042360,0.00010054,116670.0,116660.0,2.45485402]
[1754714042793,0.00010054,116670.0,116660.0,1.5022231]
[1754714043011,0.00010054,116670.0,116660.0,2.45485402]
[1754714043647,0.00219054,116670.0,116660.0,1.81976674]
[1754714043872,0.00219054,116670.0,116660.0,2.13420038]
[1754714044077,0.00219054,116670.0,116660.0,2.13741038]
[1754714044309,0.00331,116680.0,116670.0,0.17142367]
[1754714044513,0.0054,116680.0,116670.0,1.06611601]
[1754714044716,0.0054,116680.0,116670.0,0.85438695]
[1754714044942,0.0054,116680.0,116670.0,0.43102873]
[1754714045173,0.17159429,116690.0,116680.0,0.17140898]
[1754714045389,0.17361429,116690.0,116680.0,0.17140898]
[1754714045602,0.17361429,116690.0,116680.0,0.64406647]
[1754714045807,0.17361429,116690.0,116680.0,0.07504427]
[1754714046230,0.17361429,116690.0,116680.0,0.49840249]
[1754714046918,0.31205429,116690.0,116680.0,0.49840249]
[1754714047131,0.31305429,116690.0,116680.0,0.49840249]
[1754714047557,0.31305429,116690.0,116680.0,0.07504427]
[1754714047776,0.31305429,116690.0,116680.0,0.49840249]
[1754714047988,0.31405429,116690.0,116680.0,0.49840249]
[1754714048439,0.31405429,116690.0,116680.0,0.66981147]
[1754714048888,0.31405429,116690.0,116680.0,0.24645325]
[1754714049087,0.31405429,116690.0,116680.0,0.66981147]
[1754714049904,0.31405429,116690.0,116680.0,0.24645325]
[1754714050114,0.31405429,116690.0,116680.0,0.66981147]
[1754714050327,0.31405429,116690.0,116680.0,0.6205122]
[1754714050926,0.0022,116690.0,116680.0,1.27440253]
[1754714051335,0.0022,116690.0,116680.0,1.3819978]
[1754714051786,0.0012,116690.0,116680.0,1.3819978]
[1754714052867,0.0002,116690.0,116680.0,1.3819978]
[1754714053073,0.0002,116690.0,116680.0,0.62207561]
[1754714053289,0.0002,116690.0,116680.0,1.46879205]
[1754714053504,0.0002,116690.0,116680.0,0.48371561]
[1754714053725,0.0009,116690.0,116680.0,0.90707383]
[1754714054392,0.0009,116690.0,116680.0,0.48371561]
[1754714054599,0.0009,116690.0,116680.0,0.90707383]
[1754714055017,0.0002,116690.0,116680.0,0.90707383]